lending/lending_fUSD_20251121
["ID","MTS","AMOUNT","RATE_DAILY","PERIOD"]
[394608319,1763754640445,-500.0,0.00017787,2]
[394608321,1763754640454,-500.0,0.00017787,2]
[394608323,1763754640463,-500.0,0.00017787,2]
[394608325,1763754640472,-500.0,0.00017787,2]
[394608327,1763754640482,-500.0,0.00017787,2]
[394608329,1763754640491,-500.0,0.00017787,2]
[394608332,1763754640508,-500.0,0.00017787,2]
[394608335,1763754640524,-500.0,0.00017787,2]
[394608337,1763754640537,-500.0,0.00017787,2]
[394608340,1763754640550,-500.0,0.00017787,2]
[394608343,1763754640567,-500.0,0.00017787,2]
[394608345,1763754640583,-500.0,0.00017787,2]
[394608347,1763754640597,-500.0,0.00017787,2]
[394608348,1763754640610,-500.0,0.00017787,2]
[394608349,1763754640624,-500.0,0.00017787,2]
[394608350,1763754640635,-500.0,0.00017787,2]
[394608351,1763754640651,-314.87715603,0.00017787,2]
[394608352,1763754640668,-185.12284397,0.00017787,2]
[394608353,1763754640682,-500.0,0.00017787,2]
[394608354,1763754640697,-500.0,0.00017787,2]
[394608355,1763754640710,-500.0,0.00017787,2]
[394608356,1763754640724,-500.0,0.00017787,2]
[394608357,1763754640740,-500.0,0.00017787,2]
[394608358,1763754640754,-500.0,0.00017787,2]
[394608359,1763754640767,-300.0,0.00017787,2]
[394608360,1763754640783,-20787.55400859,0.00017788,2]
[394608361,1763754640798,-7616.11512361,0.00017788,2]
[394608362,1763754641667,-1006.42172559,0.00017788,2]
[394608363,1763754641681,-359.29041305,0.00017788,2]
[394608364,1763754641696,-18935.64748322,0.00017788,2]
[394608365,1763754641793,-2090.40897658,0.00017788,2]
[394608366,1763754641822,-1585.3832149,0.00017788,2]
[394608372,1763754643393,-565.24400008,0.00017788,2]
[394608373,1763754643405,-2020.2,0.00017788,2]
[394608374,1763754643485,-1510.13526797,0.00017788,2]
[394608375,1763754643496,-3755.54023686,0.00017788,2]
[394608376,1763754643507,-1335.22,0.00017788,2]
[394608377,1763754643519,-17232.09204955,0.00017788,2]
[394608378,1763754643528,-472.0,0.00017797,2]
[394608379,1763754643538,-5000.0,0.00017799,2]
[394608380,1763754643547,-472.0,0.00017818,2]
[394608381,1763754643557,-500.0,0.00017856,2]
[394608382,1763754643566,-43.15107567,0.0001786,2]
[394608383,1763754643578,-428.84892433,0.0001786,2]
[394608384,1763754643587,-472.0,0.0001788,2]
[394608385,1763754643597,-599.60298507,0.00017886,2]
[394608386,1763754643606,-500.0,0.00017898,2]
[394608387,1763754643616,-218.28985519,0.000179,2]
[394608388,1763754643625,-472.0,0.00017922,2]
[394608389,1763754643636,-500.0,0.00017945,2]
[394608390,1763754643646,-472.0,0.00017956,2]
[394608391,1763754643656,-500.0,0.00017973,2]
[394608392,1763754643665,-366.0135026,0.00017973,2]
[394608393,1763754643675,-500.0,0.00017973,2]
[394608394,1763754643686,-500.0,0.00017973,2]
[394608395,1763754643695,-500.0,0.00017973,2]
[394608396,1763754643706,-502.46688489,0.00017973,2]
[394608397,1763754643716,-513.33377773,0.00017973,2]
[394608398,1763754643726,-696.33,0.00017982,2]
[394608399,1763754643737,-169.77461404,0.00017982,2]
[394608400,1763754643746,-3553.6773317,0.00017995,2]
[394608401,1763754643755,-1000.0,0.00017999,2]
[394608402,1763754643765,-500.0,0.00017999,2]
[394608403,1763754643774,-175.37803003,0.00017999,2]
[394608404,1763754643783,-500.0,0.00017999,2]
[394608405,1763754643792,-311.94324989,0.00017999,2]
[394608406,1763754643803,-3180.0,0.00018,2]
[394608407,1763754643815,-18423.34892591,0.00018,2]
[394608408,1763754643827,-336.60110579,0.00018,2]
[394608436,1763754645765,-166.34858789,0.00017799,2]
[394608437,1763754645774,-1099.20780942,0.00018,2]
[394608438,1763754645818,-12772.37847942,0.00018,2]
[394608439,1763754645830,-7861.8183786,0.00018,2]
[394608443,1763754646032,-853.41212699,0.00018,2]
[394608444,1763754649925,25000.0,0.00022,30]
[394608445,1763755050049,150.0,0.00016949,120]
[394608446,1763755249433,1428.91,0.00019178,30]
[394608447,1763755380851,-151.0,0.00016381,2]
[394608448,1763755380896,-360.93212243,0.000164,2]
[394608449,1763755380939,-500.0,0.000164,2]
[394608450,1763755380980,-500.0,0.000164,2]
[394608451,1763755381019,-151.0,0.00016439,2]
[394608452,1763755385180,151.0,0.00016496,2]
[394608453,1763755411161,28186.06787757,0.0001646,2]
[394608454,1763755504429,14755.12,0.00022,30]
[394608481,1763755832066,-999.0,0.00016194,3]
[394608482,1763755832077,-195.0,0.00016195,2]
[394608483,1763755832088,-195.0,0.00016196,2]
[394608485,1763755832098,-150.67505042,0.000162,2]
[394608487,1763755832109,-150.0,0.000162,2]
[394608489,1763755832119,-150.0,0.000162,2]
[394608491,1763755832130,-150.0,0.000162,2]
[394608494,1763755832140,-150.0,0.000162,2]
[394608496,1763755832156,-150.82227777,0.000162,2]
[394608498,1763755832166,-150.0,0.000162,2]
[394608501,1763755832177,-150.0,0.000162,2]
[394608503,1763755832194,-150.0,0.000162,2]
[394608506,1763755832204,-150.0,0.000162,2]
[394608509,1763755832214,-150.0,0.000162,2]
[394608512,1763755832226,-150.0,0.000162,2]
[394608515,1763755832236,-150.0,0.000162,2]
[394608517,1763755832246,-150.0,0.000162,2]
[394608519,1763755832257,-3940.22544427,0.00016241,2]
[394608520,1763755832270,-1680.66735613,0.00016241,2]
[394608521,1763755832300,-2114.534,0.00016241,2]
[394608522,1763755832312,-2750.0,0.00016241,2]
[394608523,1763755832324,-2351.37,0.00016241,2]
[394608524,1763755832336,-4955.5914,0.00016241,2]
[394608525,1763755832533,-492.9925,0.00016241,2]
[394608526,1763755832567,-1451.9685,0.00016241,2]
[394608527,1763755832580,-572.575638,0.00016241,2]
[394608528,1763755832593,-899.1702,0.00016241,2]
[394608529,1763755832606,-1216.2516,0.00016241,2]
[394608530,1763755832618,-2151.7138018,0.00016241,2]
[394608531,1763755832630,-1464.28790257,0.00016241,2]
[394608532,1763755832659,-701.61386136,0.00016241,2]
[394608533,1763755838098,-2177.45779587,0.00016241,2]
[394608534,1763755838108,-195.0,0.00016254,2]
[394608535,1763755838118,-604.95520978,0.00016438,2]
[394608536,1763755838127,-151.0,0.00016452,2]
[394608537,1763755838137,-151.0,0.00016454,2]
[394608538,1763755838146,-425.54699435,0.0001646,2]
[394608539,1763755838158,-152.66224873,0.0001646,2]
[394608540,1763755838167,-336.21869846,0.0001646,2]
[394608541,1763755838186,-901.70342397,0.0001646,2]
[394608543,1763755838196,-150.0,0.0001665,2]
[394608545,1763755838205,-150.0,0.00016668,2]
[394608547,1763755838214,-2054.86,0.00016709,2]
[394608549,1763755838225,-150.0,0.000168,2]
[394608551,1763755838234,-1767.3,0.00016882,2]
[394608552,1763755838244,-250.0,0.00016896,2]
[394608554,1763755838254,-166.34858789,0.000169,2]
[394608556,1763755838264,-150.0,0.00016949,2]
[394608559,1763755838274,-154.15573364,0.00016962,2]
[394608560,1763755838283,-277.35679052,0.00016962,2]
[394608561,1763755838292,-504.44408651,0.00016973,2]
[394608562,1763755838302,-500.0,0.00016973,2]
[394608563,1763755838311,-500.0,0.00016973,2]
[394608564,1763755838320,-500.0,0.00016973,2]
[394608565,1763755838330,-500.0,0.00016973,2]
[394608566,1763755838339,-534.3613382,0.00016973,2]
[394608567,1763755838349,-500.0,0.00016973,2]
[394608568,1763755838358,-503.77862628,0.00016973,2]
[394608569,1763755838367,-151.0,0.00016979,2]
[394608571,1763755838376,-200.0,0.00016982,2]
[394608572,1763755838386,-500.0,0.00016982,2]
[394608573,1763755838395,-500.0,0.00016982,2]
[394608574,1763755838404,-250.0,0.00016982,2]
[394608575,1763755838413,-721.12765535,0.00016982,2]
[394608576,1763755838423,-500.0,0.00016982,2]
[394608577,1763755838432,-500.0,0.00016982,2]
[394608578,1763755838442,-250.0,0.00016982,2]
[394608579,1763755838452,-500.0,0.00016982,2]
[394608580,1763755838462,-250.0,0.00016982,2]
[394608581,1763755838472,-500.0,0.00016982,2]
[394608582,1763755838482,-500.0,0.00016982,2]
[394608583,1763755838491,-250.0,0.00016982,2]
[394608584,1763755838501,-500.0,0.00016982,2]
[394608585,1763755838510,-500.0,0.00016982,2]
[394608586,1763755838520,-250.0,0.00016982,2]
[394608587,1763755838529,-500.0,0.00016982,2]
[394608588,1763755838539,-500.0,0.00016982,2]
[394608589,1763755838549,-500.0,0.00016982,2]
[394608590,1763755838558,-500.0,0.00016982,2]
[394608591,1763755838568,-250.0,0.00016982,2]
[394608592,1763755838577,-500.0,0.00016982,2]
[394608593,1763755838586,-500.0,0.00016982,2]
[394608594,1763755838594,-250.0,0.00016982,2]
[394608595,1763755838602,-250.0,0.00016982,2]
[394608596,1763755838610,-218.73677664,0.00016982,2]
[394608597,1763755838620,-281.26322336,0.00016982,2]
[394608598,1763755838629,-194.05892326,0.00016982,2]
[394608599,1763755838670,-305.94107674,0.00016982,2]
[394608600,1763755838680,-250.0,0.00016982,2]
[394608601,1763755838689,-250.0,0.00016982,2]
[394608602,1763755838700,-500.0,0.00016982,2]
[394608603,1763755838710,-500.0,0.00016982,2]
[394608604,1763755838719,-250.0,0.00016982,2]
[394608605,1763755838729,-83.45892344,0.00016982,2]
[394608606,1763755838750,-166.54107656,0.00016982,2]
[394608607,1763755838759,-500.0,0.00016982,2]
[394608608,1763755838768,-270.95892344,0.00016982,2]
[394608611,1763755839882,-229.04107656,0.00016982,2]
[394608612,1763755839892,-250.0,0.00016982,2]
[394608613,1763755839901,-250.0,0.00016982,2]
[394608614,1763755839910,-500.0,0.00016982,2]
[394608615,1763755839919,-500.0,0.00016982,2]
[394608616,1763755839928,-250.0,0.00016982,2]
[394608617,1763755839937,-250.0,0.00016982,2]
[394608618,1763755839947,-500.0,0.00016982,2]
[394608619,1763755839956,-391.41790014,0.00016982,2]
[394608620,1763755839968,-108.58209986,0.00016982,2]
[394608621,1763755839977,-363.18952919,0.00016982,2]
[394608622,1763755839986,-250.0,0.00016982,2]
[394608623,1763755839996,-500.0,0.00016982,2]
[394608624,1763755840005,-218.99946425,0.00016982,2]
[394608625,1763755840022,-103.61123575,0.00016982,2]
[394608626,1763755840031,-253.97841715,0.00016982,2]
[394608627,1763755840041,-500.0,0.00016982,2]
[394608628,1763755840050,-500.0,0.00016982,2]
[394608629,1763755840061,-500.0,0.00016982,2]
[394608630,1763755840070,-500.0,0.00016982,2]
[394608631,1763755840080,-500.0,0.00016982,2]
[394608632,1763755840089,-500.0,0.00016982,2]
[394608633,1763755840098,-500.0,0.00016982,2]
[394608634,1763755840108,-366.6303471,0.00016982,2]
[394608635,1763755840120,-133.3696529,0.00016982,2]
[394608636,1763755840129,-500.0,0.00016982,2]
[394608637,1763755840139,-500.0,0.00016982,2]
[394608638,1763755840148,-250.0,0.00016982,2]
[394608639,1763755840157,-250.0,0.00016982,2]
[394608640,1763755840167,-500.0,0.00016982,2]
[394608641,1763755840176,-164.68603605,0.00016982,2]
[394608642,1763755840189,-500.0,0.00016982,2]
[394608643,1763755840199,-500.0,0.00016982,2]
[394608644,1763755840209,-500.0,0.00016982,2]
[394608645,1763755840219,-500.0,0.00016982,2]
[394608646,1763755840228,-365.39756851,0.00016982,2]
[394608647,1763755840269,-134.60243149,0.00016982,2]
[394608648,1763755840278,-500.0,0.00016982,2]
[394608649,1763755840288,-144.10197251,0.00016982,2]
[394608650,1763755843217,-151.0,0.00016471,2]
[394608651,1763755843230,-355.89802749,0.00016982,2]
[394608652,1763755843240,-169.59640708,0.00016982,2]
[394608653,1763755843274,-330.40359292,0.00016982,2]
[394608654,1763755843284,-500.0,0.00016982,2]
[394608655,1763755843294,-500.0,0.00016982,2]
[394608656,1763755843304,-318.78407102,0.00016982,2]
[394608657,1763755843316,-181.21592898,0.00016982,2]
[394608658,1763755843327,-500.0,0.00016982,2]
[394608659,1763755843338,-500.0,0.00016982,2]
[394608660,1763755843349,-18.78402102,0.00016982,2]
[394608661,1763755843362,-481.21597898,0.00016982,2]
[394608662,1763755843372,-95.7784055,0.00016982,2]
[394608663,1763755843477,-404.2215945,0.00016982,2]
[394608664,1763755843488,-500.0,0.00016982,2]
[394608666,1763755843499,-500.0,0.00016982,2]
[394608667,1763755843510,-500.0,0.00016982,2]
[394608669,1763755843521,-500.0,0.00016982,2]
[394608670,1763755843532,-500.0,0.00016982,2]
[394608671,1763755843542,-500.0,0.00016982,2]
[394608672,1763755843553,-574.12855637,0.00016982,2]
[394608674,1763755843564,-200.0,0.00016982,2]
[394608675,1763755843575,-250.0,0.00016982,2]
[394608676,1763755843585,-250.0,0.00016982,2]
[394608677,1763755843595,-500.0,0.00016982,2]
[394608678,1763755843605,-250.0,0.00016982,2]
[394608680,1763755843615,-500.0,0.00016982,2]
[394608682,1763755843625,-250.0,0.00016982,2]
[394608684,1763755843635,-500.0,0.00016982,2]
[394608686,1763755843646,-250.0,0.00016982,2]
[394608687,1763755843657,-500.0,0.00016982,2]
[394608688,1763755843667,-250.0,0.00016982,2]
[394608689,1763755843677,-500.0,0.00016982,2]
[394608691,1763755843687,-250.0,0.00016982,2]
[394608692,1763755843697,-500.0,0.00016982,2]
[394608693,1763755843707,-250.0,0.00016982,2]
[394608694,1763755843717,-500.0,0.00016982,2]
[394608695,1763755843727,-250.0,0.00016982,2]
[394608696,1763755843736,-500.0,0.00016982,2]
[394608697,1763755843746,-250.0,0.00016982,2]
[394608698,1763755843756,-620.0,0.00016982,2]
[394608699,1763755843766,-200.0,0.00016982,2]
[394608700,1763755843776,-500.0,0.00016982,2]
[394608701,1763755843786,-250.0,0.00016982,2]
[394608702,1763755843796,-500.0,0.00016982,2]
[394608703,1763755843806,-500.0,0.00016982,2]
[394608704,1763755843817,-255.61,0.00016982,2]
[394608705,1763755843827,-151.0,0.00016989,2]
[394608706,1763755843837,-557.064,0.00016991,2]
[394608707,1763755843847,-500.0,0.00016991,2]
[394608708,1763755843858,-500.0,0.00016991,2]
[394608709,1763755843868,-500.0,0.00016991,2]
[394608710,1763755843879,-415.555,0.00016991,2]
[394608711,1763755843891,-2000.0,0.00017,2]
[394608712,1763755843901,-1184.93,0.00017042,2]
[394608713,1763755843911,-150.0,0.000171,2]
[394608714,1763755843921,-150.0,0.000171,2]
[394608715,1763755843931,-150.0,0.000171,2]
[394608716,1763755843942,-150.0,0.000171,2]
[394608717,1763755843953,-255.61,0.00017256,2]
[394608718,1763755843968,-150.0,0.000174,2]
[394608719,1763755843978,-426.56612961,0.00017474,2]
[394608720,1763755843987,-166.66,0.00017495,2]
[394608721,1763755843998,-1678.87445918,0.000175,2]
[394608722,1763755844008,-200.0,0.0001753,2]
[394608723,1763755844017,-500.0,0.0001753,2]
[394608724,1763755844027,-595.37131296,0.0001753,2]
[394608725,1763755844037,-642.94,0.0001753,2]
[394608726,1763755844047,-200.0,0.0001753,2]
[394608727,1763755844057,-255.61,0.0001753,2]
[394608728,1763755844067,-150.0,0.0001755,2]
[394608729,1763755844077,-255.61,0.00017804,2]
[394608730,1763755844087,-195.0,0.00017813,2]
[394608731,1763755844097,-250.0,0.00017813,2]
[394608732,1763755844107,-195.0,0.00017813,2]
[394608733,1763755844118,-500.0,0.00017856,2]
[394608734,1763755844128,-166.66,0.00017863,2]
[394608735,1763755844138,-975.7076554,0.00017871,2]
[394608736,1763755844148,-5000.0,0.00017889,2]
[394608737,1763755844159,-166.34858789,0.000179,2]
[394608738,1763755844169,-223.69378529,0.000179,3]
[394608739,1763755844181,-389.90015139,0.000179,2]
[394608740,1763755844191,-500.0,0.00017973,2]
[394608741,1763755844202,-500.0,0.00017973,2]
[394608742,1763755844212,-500.0,0.00017973,2]
[394608743,1763755844223,-500.0,0.00017973,2]
[394608744,1763755844233,-500.0,0.00017973,2]
[394608745,1763755844243,-500.0,0.00017973,2]
[394608746,1763755844253,-503.52814199,0.00017973,2]
[394608747,1763755844262,-500.0,0.00017973,2]
[394608748,1763755844271,-500.0,0.00017973,2]
[394608749,1763755844281,-501.42210277,0.00017973,2]
[394608750,1763755844290,-500.0,0.00017973,2]
[394608751,1763755844300,-500.0,0.00017973,2]
[394608752,1763755844311,-150.0,0.00017989,2]
[394608753,1763755844321,-150.0,0.00017989,2]
[394608754,1763755844331,-500.0,0.00017999,2]
[394608755,1763755844341,-500.0,0.00017999,2]
[394608756,1763755844351,-418.36027492,0.00017999,2]
[394608757,1763755844361,-500.0,0.00017999,2]
[394608758,1763755844370,-500.0,0.00017999,2]
[394608759,1763755844380,-609.50769772,0.00017999,2]
[394608760,1763755844389,-2749.0,0.00018,2]
[394608761,1763755844399,-150.0,0.00018,2]
[394608762,1763755844409,-150.0,0.00018,2]
[394608763,1763755844419,-150.0,0.00018,2]
[394608764,1763755844430,-150.0,0.00018,2]
[394608765,1763755844440,-150.0,0.00018,2]
[394608766,1763755844452,-150.0,0.00018,2]
[394608767,1763755844462,-150.0,0.00018,2]
[394608768,1763755844472,-150.0,0.00018,2]
[394608769,1763755844482,-150.0,0.00018,2]
[394608770,1763755844492,-4424986.77364692,0.00018,2]
[394608771,1763755844505,-3021.42867883,0.00018,2]
[394608772,1763755844782,-15265.01843956,0.00018,2]
[394608773,1763755845025,-15373.20800993,0.00018,2]
[394608774,1763755845046,-44000.81152869,0.00018,2]
[394608775,1763755845260,-1154.35196406,0.00018,2]
[394608781,1763755846041,-452.45968249,0.00018,2]
[394608782,1763755846053,-6115.47176717,0.00018,2]
[394608783,1763755846072,-412560.27416909,0.00018,2]
[394608784,1763755846153,-1042.39842956,0.00018,2]
[394608785,1763755846165,-445.205,0.00018,2]
[394608786,1763755846177,-5000.0,0.00018,2]
[394608787,1763755846191,-1354.57639,0.00018,2]
[394608788,1763755846257,-18191.47137905,0.00018,2]
[394608789,1763755846270,-844.13745707,0.00018,2]
[394608790,1763756163602,1000.0,0.00013699,2]
[394608791,1763756885887,2575.49461551,0.0001439,2]
[394608792,1763756888911,635.66047941,0.000135,2]
[394608800,1763757032268,-765.1419846,0.00015,2]
[394608801,1763757032277,-195.0,0.000156,2]
[394608802,1763757032287,-195.0,0.00016032,2]
[394608803,1763757032296,-5000.00903548,0.000162,5]
[394608804,1763757032305,-500.0,0.00016266,2]
[394608805,1763757032314,-150.0,0.00016266,2]
[394608806,1763757032324,-284.0,0.00016347,2]
[394608807,1763757032333,-1000.0,0.00016348,2]
[394608808,1763757032342,-151.0,0.00016401,2]
[394608809,1763757032351,-151.0,0.00016401,2]
[394608810,1763757032361,-151.0,0.00016401,2]
[394608811,1763757032370,-151.0,0.00016401,2]
[394608812,1763757032379,-300.0,0.00016436,2]
[394608813,1763757032388,-1200.0,0.00016437,2]
[394608814,1763757032397,-578.20924308,0.00016438,2]
[394608815,1763757032406,-2531.99,0.00016438,2]
[394608816,1763757032415,-3396.17460819,0.00016451,2]
[394608817,1763757032431,-1012.108084,0.00016451,2]
[394608818,1763757032442,-5241.22730781,0.00016451,2]
[394608819,1763757032455,-300.0,0.000165,2]
[394608820,1763757032465,-195.0,0.000165,2]
[394608821,1763757032474,-250.0,0.000165,2]
[394608822,1763757032484,-200.0,0.0001652,2]
[394608823,1763757032493,-1866.67269219,0.00016773,2]
[394608824,1763757032507,-457.60598217,0.00016773,2]
[394608825,1763757032540,-2385.16432564,0.00016773,2]
[394608826,1763757032550,-271.0,0.00016871,2]
[394608828,1763757032559,-322.6107,0.00016872,2]
[394608830,1763757032569,-573.79808477,0.00016872,2]
[394608831,1763757032580,-147.32957058,0.00016872,2]
[394608832,1763757032590,-250.0,0.00016872,2]
[394608833,1763757032605,-500.0,0.00016872,2]
[394608834,1763757032614,-574.12855637,0.00016872,2]
[394608835,1763757032624,-28.27946684,0.00016872,2]
[394608836,1763757032636,-471.72053316,0.00016872,2]
[394608837,1763757032647,-265.3329007,0.00016872,2]
[394608838,1763757032662,-68.21487927,0.00016872,2]
[394608839,1763757032674,-500.0,0.00016872,2]
[394608840,1763757032683,-500.0,0.00016872,2]
[394608841,1763757032693,-500.0,0.00016872,2]
[394608842,1763757032703,-500.0,0.00016872,2]
[394608843,1763757032713,-500.0,0.00016872,2]
[394608844,1763757032722,-500.0,0.00016872,2]
[394608845,1763757032732,-500.0,0.00016872,2]
[394608846,1763757032741,-500.0,0.00016872,2]
[394608847,1763757032752,-500.0,0.00016872,2]
[394608848,1763757032761,-500.0,0.00016872,2]
[394608849,1763757032771,-500.0,0.00016872,2]
[394608850,1763757032780,-500.0,0.00016872,2]
[394608851,1763757032790,-500.0,0.00016872,2]
[394608852,1763757032799,-500.0,0.00016872,2]
[394608853,1763757032809,-500.0,0.00016872,2]
[394608854,1763757032819,-500.0,0.00016872,2]
[394608856,1763757032828,-500.0,0.00016872,2]
[394608858,1763757032838,-500.0,0.00016872,2]
[394608860,1763757032847,-500.0,0.00016872,2]
[394608862,1763757032860,-500.0,0.00016872,2]
[394608864,1763757032870,-500.0,0.00016872,2]
[394608866,1763757032879,-500.0,0.00016872,2]
[394608868,1763757032889,-500.0,0.00016872,2]
[394608870,1763757032899,-500.0,0.00016872,2]
[394608872,1763757032908,-500.0,0.00016872,2]
[394608874,1763757032918,-500.0,0.00016872,2]
[394608876,1763757032928,-500.0,0.00016872,2]
[394608879,1763757032938,-246.78512073,0.00016872,2]
[394608886,1763757038036,-253.21487927,0.00016872,2]
[394608887,1763757038046,-270.67791355,0.00016872,2]
[394608888,1763757038057,-229.32208645,0.00016872,2]
[394608889,1763757038067,-500.0,0.00016872,2]
[394608890,1763757038076,-500.0,0.00016872,2]
[394608891,1763757038086,-200.0,0.00016872,2]
[394608892,1763757038095,-500.0,0.00016872,2]
[394608893,1763757038105,-70.67791355,0.00016872,2]
[394608894,1763757038168,-352.81814119,0.00016872,2]
[394608895,1763757038178,-500.0,0.00016872,2]
[394608896,1763757038187,-500.0,0.00016872,2]
[394608897,1763757038197,-500.0,0.00016872,2]
[394608898,1763757038207,-500.0,0.00016872,2]
[394608899,1763757038216,-277.35679052,0.00016872,2]
[394608900,1763757038226,-250.0,0.00016872,2]
[394608901,1763757038236,-250.0,0.00016872,2]
[394608902,1763757038245,-250.0,0.00016872,2]
[394608903,1763757038255,-250.0,0.00016872,2]
[394608904,1763757038267,-151.0,0.00016872,2]
[394608905,1763757038276,-250.0,0.00016872,2]
[394608906,1763757038286,-151.0,0.00016872,2]
[394608907,1763757038296,-250.0,0.00016872,2]
[394608908,1763757038306,-151.0,0.00016872,2]
[394608909,1763757038315,-250.0,0.00016872,2]
[394608910,1763757038325,-151.0,0.00016872,2]
[394608911,1763757038335,-250.0,0.00016872,2]
[394608912,1763757038345,-151.0,0.00016872,2]
[394608913,1763757038355,-250.0,0.00016872,2]
[394608914,1763757038364,-151.0,0.00016872,2]
[394608915,1763757038373,-250.0,0.00016872,2]
[394608916,1763757038383,-151.0,0.00016872,2]
[394608917,1763757038393,-250.0,0.00016872,2]
[394608918,1763757038403,-151.0,0.00016872,2]
[394608919,1763757038413,-151.0,0.00016872,2]
[394608920,1763757038422,-442.71974365,0.00016872,2]
[394608921,1763757038433,-151.0,0.00016872,2]
[394608922,1763757038442,-151.0,0.00016872,2]
[394608923,1763757038451,-151.0,0.00016872,2]
[394608924,1763757038460,-500.0,0.00016872,2]
[394608925,1763757038470,-620.0,0.00016872,2]
[394608926,1763757038479,-151.0,0.00016872,2]
[394608927,1763757038768,-151.0,0.00016872,2]
[394608928,1763757038781,-500.0,0.00016872,2]
[394608929,1763757038792,-151.0,0.00016872,2]
[394608930,1763757038802,-500.0,0.00016872,2]
[394608931,1763757038812,-151.0,0.00016872,2]
[394608932,1763757038822,-500.0,0.00016872,2]
[394608933,1763757038831,-500.0,0.00016872,2]
[394608934,1763757038842,-151.0,0.00016872,2]
[394608935,1763757038851,-500.0,0.00016872,2]
[394608936,1763757038861,-151.0,0.00016872,2]
[394608937,1763757038871,-227.28168012,0.00016872,2]
[394608938,1763757038881,-500.0,0.00016872,2]
[394608939,1763757038891,-500.0,0.00016872,2]
[394608940,1763757038901,-500.0,0.00016872,2]
[394608941,1763757038910,-500.0,0.00016872,2]
[394608942,1763757038921,-500.0,0.00016872,2]
[394608943,1763757038932,-500.0,0.00016872,2]
[394608944,1763757038942,-203.28823328,0.00016872,2]
[394608945,1763757038951,-500.0,0.00016872,2]
[394608946,1763757038961,-500.0,0.00016872,2]
[394608947,1763757038971,-500.0,0.00016872,2]
[394608948,1763757038980,-500.0,0.00016872,2]
[394608949,1763757038990,-500.0,0.00016872,2]
[394608950,1763757038999,-500.0,0.00016872,2]
[394608951,1763757039012,-500.0,0.00016872,2]
[394608952,1763757039022,-500.0,0.00016872,2]
[394608953,1763757039031,-500.0,0.00016872,2]
[394608954,1763757039040,-500.0,0.00016872,2]
[394608955,1763757039050,-210.35619064,0.00016872,2]
[394608956,1763757039060,-150.71937,0.00016873,2]
[394608957,1763757039070,-500.0,0.00016873,2]
[394608958,1763757039080,-500.0,0.00016873,2]
[394608959,1763757039089,-500.0,0.00016873,2]
[394608960,1763757039099,-500.0,0.00016873,2]
[394608961,1763757039109,-445.652,0.00016881,2]
[394608962,1763757039118,-500.0,0.00016881,2]
[394608963,1763757039128,-500.0,0.00016881,2]
[394608964,1763757039137,-500.0,0.00016881,2]
[394608965,1763757039147,-500.0,0.00016882,2]
[394608966,1763757039157,-1639.08427634,0.00016891,2]
[394608967,1763757039167,-352.01033527,0.00016991,2]
[394608968,1763757039177,-500.0,0.00016999,2]
[394608969,1763757039185,-500.0,0.00016999,2]